fUSD/lending_fUSD_20241009
["ID","MTS","AMOUNT","RATE_DAILY","PERIOD"]
[340076073,1728472251006,-500.0,0.00043013,2]
[340076074,1728472251015,-500.0,0.00043013,120]
[340076075,1728472251024,-500.0,0.00043013,2]
[340076076,1728472251033,-509.02688882,0.00043013,120]
[340076077,1728472251042,-513.91,0.00043013,120]
[340076078,1728472251052,-500.0,0.00043013,120]
[340076079,1728472251062,-1371.89,0.00043013,120]
[340076080,1728472251071,-498.01345539,0.00043013,120]
[340076081,1728472251080,-779.59,0.00043013,120]
[340076082,1728472251089,-500.0,0.00043013,120]
[340076083,1728472251098,-500.0,0.00043013,120]
[340076084,1728472251107,-534.35706847,0.00043013,120]
[340076085,1728472251117,-500.0,0.00043013,120]
[340076086,1728472251127,-500.0,0.00043013,120]
[340076087,1728472251137,-500.0,0.00043013,120]
[340076088,1728472251148,-500.0,0.00043013,120]
[340076089,1728472251157,-500.0,0.00043013,120]
[340076090,1728472251169,-448.60056876,0.00043013,120]
[340076091,1728472251179,-500.0,0.00043013,120]
[340076092,1728472251188,-500.0,0.00043013,120]
[340076093,1728472251198,-211.04166676,0.00043013,120]
[340076094,1728472251209,-500.0,0.00043013,120]
[340076095,1728472251218,-508.11990388,0.00043013,120]
[340076096,1728472251228,-500.0,0.00043013,120]
[340076097,1728472251240,-500.0,0.00043013,120]
[340076098,1728472251250,-511.15545908,0.00043013,120]
[340076099,1728472251259,-500.0,0.00043013,120]
[340076100,1728472251269,-511.95495791,0.00043013,120]
[340076101,1728472251278,-299.59767169,0.00043013,120]
[340076102,1728472251287,-502.57183682,0.00043013,120]
[340076103,1728472251297,-500.0,0.00043013,120]
[340076104,1728472251307,-501.29650279,0.00043013,120]
[340076105,1728472251317,-500.0,0.00043013,120]
[340076106,1728472251327,-218.21184072,0.00043013,120]
[340076107,1728472251338,-613.7398731,0.00043013,120]
[340076108,1728472251347,-500.0,0.00043013,120]
[340076109,1728472251357,-500.0,0.00043013,120]
[340076110,1728472251366,-500.0,0.00043013,120]
[340076111,1728472251376,-505.4302068,0.00043013,120]
[340076112,1728472251385,-500.0,0.00043013,120]
[340076113,1728472251395,-500.0,0.00043013,120]
[340076114,1728472251404,-500.0,0.00043013,120]
[340076115,1728472251414,-500.0,0.00043013,120]
[340076116,1728472251423,-500.0,0.00043013,120]
[340076117,1728472251433,-500.0,0.00043013,120]
[340076118,1728472251442,-506.67722896,0.00043013,120]
[340076119,1728472251451,-500.0,0.00043013,120]
[340076120,1728472251461,-500.0,0.00043013,60]
[340076121,1728472251470,-500.0,0.00043013,120]
[340076122,1728472251479,-500.0,0.00043013,120]
[340076123,1728472251489,-500.0,0.00043013,120]
[340076124,1728472251498,-476.40857917,0.00043013,120]
[340076125,1728472251508,-527.9362202,0.00043013,7]
[340076126,1728472251518,-500.0,0.00043013,7]
[340076127,1728472251527,-505.05008823,0.00043013,7]
[340076128,1728472251537,-517.33131638,0.00043013,120]
[340076129,1728472251546,-500.0,0.00043013,120]
[340076130,1728472251556,-500.0,0.00043013,120]
[340076131,1728472251566,-500.0,0.00043013,120]
[340076132,1728472251575,-500.0,0.00043013,120]
[340076133,1728472251585,-500.0,0.00043013,120]
[340076134,1728472251595,-500.0,0.00043013,120]
[340076135,1728472251605,-500.0,0.00043013,120]
[340076136,1728472251615,-8670.821325,0.00043013,120]
[340076137,1728472251624,-190.969172,0.00043013,120]
[340076138,1728472251634,-500.0,0.00043013,120]
[340076139,1728472251643,-500.0,0.00043013,120]
[340076140,1728472251653,-500.0,0.00043013,120]
[340076141,1728472251662,-160.562075,0.00043013,120]
[340076142,1728472251671,-566.42194597,0.00043013,120]
[340076143,1728472251681,-151.334748,0.00043013,120]
[340076144,1728472251690,-500.0,0.00043013,120]
[340076145,1728472251700,-259.95468685,0.00043013,120]
[340076146,1728472251709,-500.0,0.00043013,120]
[340076147,1728472251719,-587.65,0.00043013,120]
[340076148,1728472251728,-500.0,0.00043013,120]
[340076149,1728472251738,-500.0,0.00043013,120]
[340076150,1728472251748,-172.96806256,0.00043013,120]
[340076151,1728472251758,-500.0,0.00043013,120]
[340076152,1728472251767,-500.0,0.00043013,120]
[340076153,1728472251777,-500.0,0.00043013,120]
[340076154,1728472251786,-511.27446693,0.00043013,120]
[340076155,1728472251796,-1377.34,0.00043013,14]
[340076156,1728472251806,-500.0,0.00043013,120]
[340076157,1728472251815,-512.38787654,0.00043013,120]
[340076158,1728472251824,-2101.36,0.00043013,120]
[340076159,1728472251834,-500.0,0.00043013,120]
[340076160,1728472251843,-514.31092346,0.00043013,120]
[340076161,1728472251852,-505.22360718,0.00043013,120]
[340076162,1728472251862,-500.0,0.00043013,120]
[340076163,1728472251872,-500.0,0.00043013,120]
[340076164,1728472251881,-500.0,0.00043013,120]
[340076165,1728472251891,-511.46329543,0.00043013,120]
[340076166,1728472252018,-454.35933569,0.00043013,120]
[340076167,1728472252027,-500.0,0.00043013,120]
[340076168,1728472252036,-500.0,0.00043013,120]
[340076169,1728472252046,-162.78935272,0.00043013,120]
[340076170,1728472252056,-500.0,0.00043013,120]
[340076171,1728472252065,-500.0,0.00043013,120]
[340076172,1728472252076,-500.0,0.00043013,120]
[340076173,1728472252085,-508.49907097,0.00043013,120]
[340076174,1728472252095,-500.0,0.00043013,120]
[340076175,1728472252106,-500.0,0.00043013,120]
[340076176,1728472252116,-507.06738858,0.00043013,120]
[340076177,1728472252125,-500.0,0.00043013,120]
[340076178,1728472252134,-500.0,0.00043013,120]
[340076179,1728472252144,-1315.46,0.00043013,120]
[340076180,1728472252163,-500.0,0.00043013,120]
[340076181,1728472252173,-500.0,0.00043013,120]
[340076182,1728472252185,-500.0,0.00043013,120]
[340076183,1728472252194,-521.46668716,0.00043013,120]
[340076184,1728472252203,-500.0,0.00043013,120]
[340076185,1728472252212,-500.0,0.00043013,2]
[340076186,1728472252221,-272.08036671,0.00043013,120]
[340076187,1728472252231,-500.0,0.00043013,120]
[340076188,1728472252240,-500.0,0.00043013,120]
[340076189,1728472252250,-500.0,0.00043013,120]
[340076190,1728472252259,-500.0,0.00043013,120]
[340076191,1728472252269,-500.0,0.00043013,120]
[340076192,1728472252278,-501.12,0.00043013,120]
[340076193,1728472252288,-500.0,0.00043013,120]
[340076194,1728472252298,-20000.0,0.00043013,2]
[340076195,1728472252307,-500.0,0.00043013,120]
[340076196,1728472252316,-500.0,0.00043013,120]
[340076197,1728472252327,-500.0,0.00043013,120]
[340076198,1728472252337,-500.0,0.00043013,120]
[340076199,1728472252346,-500.0,0.00043013,120]
[340076200,1728472252355,-500.0,0.00043013,120]
[340076201,1728472252365,-500.0,0.00043013,120]
[340076202,1728472252375,-500.0,0.00043013,120]
[340076203,1728472252384,-502.12,0.00043013,120]
[340076204,1728472252395,-500.0,0.00043013,120]
[340076205,1728472252404,-716.65,0.00043013,120]
[340076206,1728472252414,-500.0,0.00043013,120]
[340076207,1728472252424,-512.81149432,0.00043013,120]
[340076208,1728472252433,-500.0,0.00043013,120]
[340076209,1728472252443,-500.0,0.00043013,120]
[340076210,1728472252452,-500.0,0.00043013,120]
[340076211,1728472252462,-500.0,0.00043013,120]
[340076212,1728472252472,-1417.54,0.00043013,120]
[340076213,1728472252481,-540.98773445,0.00043013,120]
[340076214,1728472252491,-500.0,0.00043013,120]
[340076215,1728472252500,-500.0,0.00043013,120]
[340076216,1728472252510,-524.92539691,0.00043013,120]
[340076217,1728472252519,-523.00927599,0.00043013,120]
[340076218,1728472252529,-660.59,0.00043013,120]
[340076219,1728472252538,-855.85,0.00043013,120]
[340076220,1728472252547,-500.0,0.00043013,120]
[340076221,1728472252557,-349.16765572,0.00043013,120]
[340076222,1728472252568,-500.0,0.00043013,120]
[340076223,1728472252577,-500.0,0.00043013,120]
[340076224,1728472252587,-1584.37,0.00043013,120]
[340076225,1728472252596,-500.0,0.00043013,120]
[340076226,1728472252606,-500.0,0.00043013,120]
[340076227,1728472252615,-230.02094852,0.00043013,120]
[340076228,1728472252624,-500.0,0.00043013,120]
[340076229,1728472252633,-601.25813535,0.00043013,120]
[340076230,1728472252642,-500.0,0.00043013,120]
[340076231,1728472252652,-500.0,0.00043013,120]
[340076232,1728472252661,-611.70423679,0.00043013,120]
[340076233,1728472252671,-379.49685617,0.00043013,120]
[340076234,1728472252680,-500.0,0.00043013,120]
[340076235,1728472252690,-151.68997771,0.00043013,120]
[340076236,1728472252699,-500.0,0.00043013,120]
[340076237,1728472252708,-549.09162395,0.00043013,120]
[340076238,1728472252718,-600.12552318,0.00043013,120]
[340076239,1728472252727,-407.23844593,0.00043013,120]
[340076240,1728472252736,-500.0,0.00043013,120]
[340076241,1728472252745,-500.0,0.00043013,120]
[340076242,1728472252754,-156.25014727,0.00043013,120]
[340076243,1728472252774,-343.74985273,0.00043013,120]
[340076244,1728472252783,-511.52966463,0.00043013,120]
[340076245,1728472252793,-500.0,0.00043013,120]
[340076246,1728472252802,-378.17769602,0.00043013,120]
[340076247,1728472253082,-281.3614,0.00036267,2]
[340076248,1728472253092,-95.594534,0.0004,120]
[340076249,1728472253104,-809.64581846,0.0004,120]
[340076250,1728472253113,-500.0,0.00040547,30]
[340076251,1728472253123,-361.37049335,0.00041095,120]
[340076252,1728472253134,-138.62950665,0.00041095,120]
[340076253,1728472253145,-1900.87,0.00041643,120]
[340076254,1728472253154,-500.0,0.00041643,120]
[340076255,1728472253164,-1900.87,0.00042191,120]
[340076256,1728472253173,-500.0,0.00042191,120]
[340076257,1728472253182,-1410.33722395,0.00042739,120]
[340076258,1728472253194,-490.53277605,0.00042739,120]
[340076259,1728472253203,-169.37722395,0.00042739,120]
[340076260,1728472253214,-330.62277605,0.00042739,120]
[340076261,1728472253223,-134.47975992,0.00043013,120]
[340076262,1728472253232,-500.0,0.00043013,120]
[340076263,1728472253241,-158.91823841,0.00043013,120]
[340076264,1728472253253,-341.08176159,0.00043013,120]
[340076265,1728472253262,-158.91823841,0.00043013,120]
[340076266,1728472253273,-356.65366265,0.00043013,120]
[340076267,1728472253282,-621.21,0.00043013,120]
[340076268,1728472253293,-500.0,0.00043013,120]
[340076269,1728472253303,-500.0,0.00043013,120]
[340076270,1728472253312,-271.10729849,0.00043013,120]
[340076271,1728472253323,-500.0,0.00043013,120]
[340076272,1728472253333,-517.9273396,0.00043013,120]
[340076273,1728472253343,-500.0,0.00043013,120]
[340076274,1728472253352,-500.0,0.00043013,120]
[340076275,1728472253362,-500.0,0.00043013,120]
[340076276,1728472253372,-507.51157622,0.00043013,120]
[340076277,1728472253382,-500.0,0.00043013,120]
[340076278,1728472253391,-327.75392624,0.00043013,120]
[340076279,1728472253404,-186.6611511,0.00043013,120]
[340076280,1728472253413,-520.41921105,0.00043013,120]
[340076281,1728472253422,-500.0,0.00043013,120]
[340076282,1728472253431,-801.24,0.00043013,120]
[340076283,1728472253440,-500.0,0.00043013,120]
[340076284,1728472253450,-585.50720326,0.00043013,120]
[340076285,1728472253459,-507.01651874,0.00043013,120]
[340076286,1728472253469,-500.0,0.00043013,120]
[340076287,1728472253479,-464.15019273,0.00043013,120]
[340076288,1728472253490,-35.84980727,0.00043013,120]
[340076289,1728472253502,-383.92258244,0.00043013,120]
[340076290,1728472253514,-1231.87959733,0.00043013,120]
[340076291,1728472253524,-424.70560655,0.00043013,120]
[340076292,1728472253536,-75.29439345,0.00043013,120]
[340076293,1728472253546,-500.0,0.00043013,120]
[340076294,1728472253555,-500.0,0.00043013,120]
[340076295,1728472253565,-500.0,0.00043013,120]
[340076296,1728472253575,-634.9,0.00043013,120]
[340076297,1728472253584,-500.0,0.00043013,120]
[340076298,1728472253595,-500.0,0.00043013,120]
[340076299,1728472253605,-500.0,0.00043013,120]
[340076300,1728472253614,-514.00077247,0.00043013,120]
[340076301,1728472253625,-500.0,0.00043013,120]
[340076302,1728472253635,-188.862162,0.00043013,120]
[340076303,1728472253645,-500.0,0.00043013,120]
[340076304,1728472253655,-500.0,0.00043013,120]
[340076305,1728472253665,-500.0,0.00043013,120]
[340076306,1728472253674,-500.0,0.00043013,120]
[340076307,1728472253683,-500.0,0.00043013,120]
[340076308,1728472253692,-500.0,0.00043013,120]
[340076309,1728472253702,-533.30635578,0.00043013,120]
[340076310,1728472253713,-500.0,0.00043013,120]
[340076311,1728472253723,-500.0,0.00043013,120]
[340076312,1728472253732,-235.24527029,0.00043013,7]
[340076313,1728472253825,-1055.09472971,0.00043013,7]
[340076314,1728472253834,-500.0,0.00043013,120]
[340076315,1728472253844,-487.71551966,0.00043013,120]
[340076316,1728472253857,-2170.71448034,0.00043013,120]
[340076317,1728472253867,-500.0,0.00043013,120]
[340076318,1728472253876,-500.0,0.00043013,120]
[340076319,1728472253885,-500.0,0.00043013,120]
[340076320,1728472253895,-500.0,0.00043013,120]
[340076321,1728472253904,-599.50973387,0.00043013,120]
[340076322,1728472253913,-500.0,0.00043013,120]
[340076323,1728472253923,-500.0,0.00043013,120]
[340076324,1728472253932,-500.0,0.00043013,120]
[340076325,1728472253941,-560.72699466,0.00043013,120]
[340076326,1728472253950,-509.47,0.00043013,120]
[340076327,1728472253959,-209.90484543,0.00043013,120]
[340076328,1728472253969,-523.26,0.00043013,120]
[340076329,1728472253978,-621.95,0.00043013,120]
[340076330,1728472253987,-563.96074153,0.00043013,120]
[340076331,1728472253996,-500.0,0.00043013,120]
[340076332,1728472254005,-500.0,0.00043013,120]
[340076333,1728472254015,-500.0,0.00043013,120]
[340076334,1728472254024,-500.0,0.00043013,120]
[340076335,1728472254033,-584.47205205,0.00043013,120]
[340076336,1728472254042,-518.76107154,0.00043013,120]
[340076337,1728472254051,-500.0,0.00043013,120]
[340076338,1728472254060,-500.0,0.00043013,120]
[340076339,1728472254070,-500.0,0.00043013,120]
[340076340,1728472254080,-183.20101536,0.00043013,120]
[340076341,1728472254090,-500.0,0.00043013,120]
[340076342,1728472254099,-589.79,0.00043013,120]
[340076343,1728472254114,-342.09449606,0.00043013,120]
[340076344,1728472254125,-500.0,0.00043013,120]
[340076345,1728472254136,-574.31408306,0.00043013,120]
[340076346,1728472254145,-500.0,0.00043013,120]
[340076347,1728472254154,-500.0,0.00043013,120]
[340076348,1728472254163,-514.77899249,0.00043013,120]
[340076349,1728472254173,-200.0,0.00043013,7]
[340076350,1728472254183,-500.0,0.00043013,120]
[340076351,1728472254193,-500.0,0.00043013,120]
[340076352,1728472254202,-500.0,0.00043013,120]
[340076353,1728472254211,-1050.25725041,0.00043013,30]
[340076354,1728472254220,-500.0,0.00043013,120]
[340076355,1728472254230,-500.0,0.00043013,120]
[340076356,1728472254239,-500.0,0.00043013,120]
[340076357,1728472254250,-506.68377489,0.00043013,120]
[340076358,1728472254261,-1411.54,0.00043013,120]
[340076359,1728472254270,-500.0,0.00043013,120]
[340076360,1728472254279,-380.8,0.00043013,120]
[340076361,1728472254288,-1003.7,0.00043013,120]
[340076362,1728472254298,-500.0,0.00043013,120]
[340076363,1728472254307,-500.0,0.00043013,120]
[340076364,1728472254317,-500.0,0.00043013,120]
[340076365,1728472254327,-500.0,0.00043013,120]
[340076366,1728472254445,-500.0,0.00043013,120]
[340076367,1728472254455,-500.0,0.00043013,120]
[340076368,1728472254465,-500.0,0.00043013,120]
[340076369,1728472254474,-500.0,0.00043013,120]
[340076370,1728472254483,-500.0,0.00043013,120]
[340076371,1728472254492,-500.0,0.00043013,120]
[340076372,1728472254502,-521.03248271,0.00043013,120]
[340076373,1728472254511,-262.14812153,0.00043013,120]
[340076374,1728472254520,-576.12415668,0.00043013,120]
[340076375,1728472254529,-1854.98,0.00043013,120]
[340076376,1728472254538,-500.0,0.00043013,120]
[340076377,1728472254548,-393.92,0.00043013,120]
[340076378,1728472254557,-561.43144433,0.00043013,120]
[340076379,1728472254570,-500.0,0.00043013,120]
[340076380,1728472254581,-500.0,0.00043013,120]
[340076381,1728472254591,-887.11,0.00043013,120]
[340076382,1728472254600,-500.0,0.00043013,120]
[340076383,1728472254611,-500.0,0.00043013,120]
[340076384,1728472254620,-169.13879747,0.00043013,120]
[340076385,1728472254636,-352.76155886,0.00043013,120]
[340076386,1728472254648,-500.0,0.00043013,120]
[340076387,1728472254657,-500.0,0.00043013,120]
[340076388,1728472254667,-71.23844114,0.00043013,120]
[340076389,1728472254680,-276.91061512,0.00043013,120]
[340076390,1728472254693,-216.41281249,0.00043013,120]
[340076391,1728472254703,-500.0,0.00043013,120]
[340076392,1728472254714,-518.11706997,0.00043013,120]
[340076393,1728472254724,-500.0,0.00043013,120]
[340076394,1728472254734,-634.12,0.00043013,120]
[340076395,1728472254743,-500.0,0.00043013,120]
[340076396,1728472254752,-500.0,0.00043013,120]
[340076397,1728472254762,-741.83,0.00043013,120]
[340076398,1728472254771,-500.0,0.00043013,120]
[340076399,1728472254781,-504.35,0.00043013,120]
[340076400,1728472254791,-319.68037398,0.00043013,120]
[340076401,1728472254800,-500.0,0.00043013,120]
[340076402,1728472254810,-205.42047661,0.00043013,120]
[340076403,1728472254822,-294.57952339,0.00043013,120]
[340076404,1728472254832,-500.0,0.00043013,120]
[340076405,1728472254841,-385.64350934,0.00043013,120]
[340076406,1728472254852,-114.35649066,0.00043013,120]
[340076407,1728472254862,-500.0,0.00043013,120]
[340076408,1728472254871,-500.0,0.00043013,120]
[340076409,1728472254881,-575.98404243,0.00043013,120]
[340076410,1728472254891,-520.47699416,0.00043013,120]
[340076411,1728472254901,-500.0,0.00043013,120]
[340076412,1728472254910,-510.22681102,0.00043013,120]
[340076413,1728472254919,-1736.63,0.00043013,120]
[340076414,1728472254928,-500.0,0.00043013,120]
[340076415,1728472254938,-500.0,0.00043013,120]
[340076416,1728472254948,-500.0,0.00043013,120]
[340076417,1728472254957,-563.38909228,0.00043013,120]
[340076418,1728472254967,-508.5580499,0.00043013,120]
[340076419,1728472254978,-500.0,0.00043013,120]
[340076420,1728472254989,-4669.34,0.00043013,120]
[340076421,1728472255000,-500.0,0.00043013,120]
[340076422,1728472255009,-599.0759055,0.00043013,120]
[340076423,1728472255019,-500.0,0.00043013,120]
[340076424,1728472255029,-475.77650503,0.00043013,120]
[340076425,1728472255041,-24.22349497,0.00043013,120]
[340076426,1728472255051,-531.94345685,0.00043013,120]
[340076427,1728472255062,-500.0,0.00043013,120]
[340076428,1728472255071,-500.0,0.00043013,120]
[340076429,1728472255081,-626.72,0.00043013,120]
[340076430,1728472255091,-519.48043564,0.00043013,120]
[340076431,1728472255100,-500.0,0.00043013,120]
[340076432,1728472255113,-513.12833844,0.00043013,120]
[340076433,1728472255122,-500.0,0.00043013,120]
[340076434,1728472255131,-542.23095211,0.00043013,120]
[340076435,1728472255140,-500.0,0.00043013,120]
[340076436,1728472255150,-500.0,0.00043013,120]
[340076437,1728472255160,-780.54326661,0.00043013,120]
[340076438,1728472255171,-1216.15843688,0.00043013,120]
[340076439,1728472255183,-49.15829651,0.00043013,120]
[340076440,1728472255192,-545.7293951,0.00043013,120]
[340076441,1728472255201,-500.0,0.00043013,120]
[340076442,1728472255211,-500.0,0.00043013,120]
[340076443,1728472255220,-500.0,0.00043013,120]
[340076444,1728472255230,-500.0,0.00043013,120]
[340076445,1728472255239,-500.0,0.00043013,120]
[340076446,1728472255249,-230.64664406,0.00043013,120]
[340076447,1728472255261,-269.35335594,0.00043013,120]
[340076448,1728472255271,-19.3885908,0.00043013,120]
[340076449,1728472255287,-480.6114092,0.00043013,120]
[340076450,1728472255296,-963.8,0.00043013,120]
[340076451,1728472255306,-374.79855344,0.00043013,120]
[340076452,1728472255317,-125.20144656,0.00043013,120]
[340076453,1728472255327,-500.0,0.00043013,120]
[340076454,1728472255336,-523.97038751,0.00043013,120]
[340076455,1728472255345,-445.27501116,0.00043013,120]
[340076456,1728472255357,-70.4799888,0.00043013,120]
[340076457,1728472255367,-500.0,0.00043013,120]
[340076458,1728472255377,-500.0,0.00043013,120]
[340076459,1728472255386,-500.0,0.00043013,120]
[340076460,1728472255397,-532.29162894,0.00043013,120]
[340076461,1728472255406,-500.0,0.00043013,120]
[340076462,1728472255416,-540.71462046,0.00043013,120]
[340076463,1728472255426,-500.0,0.00043013,120]
[340076464,1728472255435,-846.18,0.00043013,120]
[340076465,1728472255444,-561.72004779,0.00043013,120]
[340076466,1728472255454,-500.0,0.00043013,120]
[340076467,1728472255463,-500.0,0.00043013,120]
[340076468,1728472255473,-500.0,0.00043013,120]
[340076469,1728472255482,-510.88029267,0.00043013,120]
[340076470,1728472255492,-500.0,0.00043013,120]
[340076471,1728472255501,-409.63342135,0.00043013,120]
[340076472,1728472255518,-271.0,0.00037987,5]
[340076473,1728472255527,-281.75657865,0.00043013,120]
[340076474,1728472255537,-514.00402539,0.00043013,120]
[340076475,1728472255545,-500.0,0.00043013,120]
[340076476,1728472255556,-505.19272277,0.00043013,120]
[340076477,1728472255566,-500.0,0.00043013,120]
[340076478,1728472255576,-500.0,0.00043013,120]
[340076479,1728472255585,-500.0,0.00043013,120]
[340076480,1728472255595,-562.64315905,0.00043013,120]
[340076481,1728472255604,-289.91883635,0.00043013,120]
[340076482,1728472255616,-210.08116365,0.00043013,120]
[340076483,1728472255626,-434.00356313,0.00043013,120]
[340076484,1728472255641,-340.84643687,0.00043013,120]
[340076485,1728472255651,-47.1339668,0.00043013,120]
[340076486,1728472255665,-452.8660332,0.00043013,120]
[340076487,1728472255674,-246.91943794,0.00043013,120]
[340076488,1728472255687,-271.65093614,0.00043013,120]
[340076489,1728472255696,-500.0,0.00043013,120]
[340076490,1728472255705,-750.94207376,0.00043013,120]
[340076491,1728472255717,-28.32792624,0.00043013,120]
[340076492,1728472255726,-551.24002283,0.00043013,120]
[340076493,1728472255735,-423.93260249,0.00043013,120]
[340076494,1728472255746,-76.06739751,0.00043013,120]
[340076495,1728472255756,-500.0,0.00043013,120]
[340076496,1728472255765,-31.57935254,0.00043013,120]
[340076497,1728472255777,-484.07093788,0.00043013,120]
[340076498,1728472255786,-500.0,0.00043013,120]
[340076499,1728472255795,-500.0,0.00043013,120]
[340076500,1728472255804,-500.0,0.00043013,120]
[340076501,1728472255813,-500.0,0.00043013,120]
[340076502,1728472255823,-500.0,0.00043013,120]
[340076503,1728472255831,-500.0,0.00043013,120]
[340076504,1728472255841,-500.0,0.00043013,120]
[340076505,1728472255850,-500.0,0.00043013,120]
[340076506,1728472255859,-500.0,0.00043013,120]
[340076507,1728472255868,-500.0,0.00043013,120]
[340076508,1728472255877,-500.0,0.00043013,120]
[340076509,1728472255886,-500.0,0.00043013,120]
[340076510,1728472255895,-604.53763603,0.00043013,120]
[340076511,1728472255911,-500.0,0.00043013,120]
[340076512,1728472255920,-500.0,0.00043013,120]
[340076513,1728472255929,-500.0,0.00043013,120]
[340076514,1728472255938,-500.0,0.00043013,120]
[340076515,1728472255947,-500.0,0.00043013,120]
[340076516,1728472255956,-500.0,0.00043013,120]
[340076517,1728472255965,-500.0,0.00043013,120]
[340076518,1728472255975,-500.0,0.00043013,120]
[340076519,1728472255984,-545.45,0.00043013,120]
[340076520,1728472255994,-652.52,0.00043013,120]
[340076521,1728472256003,-351.42085651,0.00043013,120]
[340076522,1728472256015,-196.70272781,0.00043013,120]
[340076523,1728472256024,-505.82467631,0.00043013,120]
[340076524,1728472256034,-500.0,0.00043013,120]
[340076525,1728472256043,-481.87242996,0.00043013,120]
[340076526,1728472256261,-436.11645106,0.00037985,2]
[340076527,1728472256271,-18.12757004,0.00043013,120]
[340076528,1728472256280,-117.5259789,0.00043013,120]
[340076529,1728472256292,-382.4740211,0.00043013,120]
[340076530,1728472256301,-518.00651079,0.00043013,120]
[340076531,1728472256310,-500.0,0.00043013,120]
[340076532,1728472256319,-193.68416866,0.00043013,120]
[340076533,1728472256330,-306.31583134,0.00043013,120]
[340076534,1728472256339,-580.22227405,0.00043013,120]
[340076535,1728472256351,-1302.48772595,0.00043013,120]
[340076536,1728472256360,-500.0,0.00043013,120]
[340076537,1728472256370,-619.11227405,0.00043013,5]
[340076538,1728472256382,-151.39772595,0.00043013,5]
[340076539,1728472256391,-500.0,0.00043013,120]
[340076540,1728472256402,-50.1622745,0.00043013,2]
[340076541,1728472256413,-449.8377255,0.00043013,2]
[340076542,1728472256422,-60.98027451,0.00043013,2]
[340076543,1728472256433,-396.372256,0.00043013,2]
[340076544,1728472256444,-42.64746949,0.00043013,2]
[340076545,1728472256453,-500.0,0.00043013,2]
[340076546,1728472256462,-500.0,0.00043013,120]
[340076547,1728472256472,-500.0,0.00043013,2]
[340076548,1728472256481,-162.86141723,0.00043013,2]
[340076549,1728472256492,-337.13858277,0.00043013,2]
[340076550,1728472256502,-576.43282728,0.00043013,120]
[340076551,1728472256511,-475.42858995,0.00043013,120]
[340076552,1728472256522,-24.57141005,0.00043013,120]
[340076553,1728472256531,-262.36485801,0.00043013,2]
[340076554,1728472256542,-237.63514199,0.00043013,2]
[340076555,1728472256551,-500.0,0.00043013,2]
[340076556,1728472256560,-500.0,0.00043013,2]
[340076557,1728472256570,-32.36485801,0.00043013,120]
[340076558,1728472256581,-467.63514199,0.00043013,120]
[340076559,1728472256590,-500.0,0.00043013,2]
[340076560,1728472256600,-183.42308022,0.00043013,2]
[340076561,1728472256609,-581.82419826,0.00043013,120]
[340076562,1728472256725,-218.28580174,0.00043013,120]
[340076563,1728472256734,-500.0,0.00043013,120]
[340076564,1728472256743,-113.19870175,0.00043013,120]
[340076565,1728472256754,-408.90502186,0.00043013,120]
[340076566,1728472256763,-500.0,0.00043013,120]
[340076567,1728472256772,-500.0,0.00043013,120]
[340076568,1728472256781,-511.94670954,0.00043013,120]
[340076569,1728472256790,-507.89249896,0.00043013,120]
[340076570,1728472256800,-671.56,0.00043013,120]
[340076571,1728472256809,-1758.04,0.00043013,120]
[340076572,1728472256818,-517.21781377,0.00043013,120]